fUST/lending_fUST_20240209
["ID","MTS","AMOUNT","RATE_DAILY","PERIOD"]
[313605783,1707467438741,-718.01783563,0.00019999,2]
[313605784,1707467438750,-53885.62354043,0.0002,2]
[313605786,1707467438759,-155.6442517,0.0002,2]
[313605787,1707467438768,-240.68771494,0.0002,2]
[313605789,1707467438777,-161.14622141,0.0002,2]
[313605790,1707467438786,-344.92204167,0.0002,2]
[313605792,1707467438795,-624.47028268,0.0002,2]
[313605793,1707467438805,-688.20644982,0.0002,2]
[313605795,1707467438814,-1202.14018038,0.0002,2]
[313605797,1707467438823,-6302.21622111,0.0002,2]
[313605798,1707467438832,-3898.80587032,0.0002,15]
[313605800,1707467438844,-4711.33399403,0.0002,15]
[313605801,1707467438856,-3000.0,0.0002,15]
[313605803,1707467438867,-879.42023483,0.0002,15]
[313605805,1707467438876,-151.0,0.0002,2]
[313605806,1707467438885,-151.0,0.0002,2]
[313605808,1707467438894,-151.0,0.0002,2]
[313605817,1707467438903,-151.0,0.0002,2]
[313605818,1707467439014,-151.0,0.0002,2]
[313605820,1707467439023,-151.0,0.0002,2]
[313605822,1707467439032,-152.13912048,0.0002,2]
[313605823,1707467439041,-151.0,0.00020565,2]
[313605825,1707467439051,-252.8446631,0.00020568,2]
[313605827,1707467439060,-167.5247378,0.00020568,2]
[313605828,1707467439069,-200.0032966,0.00020568,2]
[313605830,1707467439079,-153.0,0.00021096,2]
[313605832,1707467439087,-153.0,0.00021096,2]
[313605833,1707467439096,-147.75551897,0.00021096,2]
[313605977,1707467443983,-6.64674153,0.00021096,2]
[313605978,1707467443992,-327.2797085,0.00021096,2]
[313605996,1707467449112,-4.8554841,0.00021096,2]
[313605998,1707467449122,-451.0193665,0.00021096,2]
[313605999,1707467449131,-153.0,0.00021096,2]
[313606000,1707467449141,-306.0,0.00021096,2]
[313606001,1707467449150,-153.0,0.00021096,2]
[313606002,1707467449159,-153.0,0.00021096,2]
[313606003,1707467449169,-200.0032966,0.00021096,2]
[313606004,1707467449179,-153.0,0.00021096,2]
[313606005,1707467449188,-147.5407136,0.00021096,2]
[313606006,1707467449206,-5.4592864,0.00021096,2]
[313606007,1707467449216,-200.0032966,0.00021096,2]
[313606008,1707467449225,-153.0,0.00021096,2]
[313606009,1707467449235,-153.0,0.00021096,2]
[313606010,1707467449244,-306.0,0.00021096,2]
[313606011,1707467449253,-153.0,0.00021096,2]
[313606012,1707467449262,-153.0,0.00021096,2]
[313606013,1707467449272,-200.0032966,0.00021096,2]
[313606014,1707467449282,-306.0,0.00021096,2]
[313606015,1707467449291,-153.0,0.00021096,2]
[313606016,1707467449301,-311.6820887,0.00021096,2]
[313606017,1707467449310,-200.0032966,0.00021096,2]
[313606018,1707467449320,-400.0065932,0.00021096,2]
[313606019,1707467449331,-153.0,0.00021096,2]
[313606020,1707467449341,-153.0,0.00021096,2]
[313606021,1707467449350,-200.0032966,0.00021096,2]
[313606022,1707467449359,-153.0,0.00021096,2]
[313606023,1707467449369,-153.0,0.00021096,2]
[313606024,1707467449378,-153.0,0.00021096,2]
[313606026,1707467449388,-153.0,0.00021096,2]
[313606028,1707467449397,-153.0,0.00021096,2]
[313606030,1707467449406,-153.0,0.00021096,2]
[313606031,1707467449416,-153.0,0.00021096,2]
[313606032,1707467449425,-153.0,0.00021096,2]
[313606033,1707467449434,-151.0,0.00021096,2]
[313606034,1707467449443,-151.0,0.00021096,2]
[313606035,1707467449452,-151.0,0.00021096,2]
[313606036,1707467449461,-151.0,0.00021096,2]
[313606037,1707467449470,-151.0,0.0002113,2]
[313606038,1707467449480,-353.54962761,0.00021319,2]
[313606039,1707467449489,-1437.83934606,0.00021319,2]
[313606040,1707467449498,-1476.12971692,0.00021333,2]
[313606041,1707467449508,-308.5438649,0.00021507,2]
[313606042,1707467449517,-1832.17488523,0.00021591,2]
[313606043,1707467449526,-300.0,0.00021591,2]
[313606044,1707467449538,-151.0,0.00021591,2]
[313606045,1707467449548,-151.0,0.00021591,2]
[313606046,1707467449559,-280.0,0.00021613,7]
[313606047,1707467449569,-151.0,0.00021696,2]
[313606048,1707467449578,-151.0,0.0002185,2]
[313606049,1707467449589,-151.0,0.0002185,2]
[313606050,1707467449599,-4004.29796652,0.0002185,2]
[313606051,1707467449608,-166.666666,0.00021918,2]
[313606052,1707467449617,-153.0,0.00021918,2]
[313606053,1707467449626,-153.0,0.00021918,2]
[313606054,1707467449636,-310.9248545,0.00021918,2]
[313606055,1707467449645,-293.96652096,0.00022,4]
[313606056,1707467449655,-2001.895754,0.00022,2]
[313606057,1707467449665,-150.152502,0.00022,2]
[313606058,1707467449674,-153.0,0.00022012,2]
[313606059,1707467449683,-153.0,0.00022012,2]
[313606060,1707467449694,-240.26245834,0.00022066,2]
[313606061,1707467449703,-1250.42041706,0.00022066,2]
[313606062,1707467449712,-151.0,0.00022066,2]
[313606063,1707467449722,-281.742037,0.00022066,2]
[313606064,1707467449731,-153.0,0.00022212,2]
[313606065,1707467449740,-151.0,0.00022262,2]
[313606066,1707467449749,-1927.1,0.0002228,3]
[313606067,1707467449760,-1877.38390938,0.00022288,2]
[313606068,1707467449769,-401.2778051,0.00022288,2]
[313606069,1707467449778,-265.48838552,0.00022288,2]
[313606070,1707467449788,-200.36627902,0.00022288,2]
[313606071,1707467449797,-2931.95783401,0.00022288,2]
[313606072,1707467449809,-155.55065941,0.00022288,2]
[313606073,1707467449818,-155.71579645,0.00022288,2]
[313606074,1707467449829,-680.01303789,0.00022288,2]
[313606075,1707467449838,-156.51285479,0.00022288,2]
[313606076,1707467449847,-403.90566713,0.00022288,2]
[313606077,1707467449860,-1369.57624575,0.00022288,2]
[313606136,1707468634468,-700.93102475,0.00019724,2]
[313606142,1707468638771,-4581.69473337,0.00019724,2]
[313606143,1707468638780,-2045.48652279,0.00019725,2]
[313606144,1707468638790,-450.62179042,0.0002,2]
[313606145,1707468638911,-603.05777865,0.0002,2]
[313606146,1707468638920,-300.0,0.0002,2]
[313606147,1707468638928,-168.972924,0.0002095,2]
[313606148,1707468638938,-166.666666,0.00021918,2]
[313606149,1707468638947,-200.0,0.00021999,7]
[313606150,1707468638956,-183.41707481,0.00022,2]
[313606230,1707468645004,-266.83135799,0.00022,2]
[313606232,1707468645014,-1755.11202452,0.00022263,2]
[313606245,1707468645124,-1225.00346706,0.00022263,2]
[313606252,1707468645192,-15067.80132937,0.00022263,2]
[313606254,1707468645205,-793.39723521,0.00022263,2]
[313606277,1707468646686,-42495.26157384,0.00022263,2]
[313606278,1707468646695,-1639.44,0.00022278,3]
[313606280,1707468646705,-1422.65950465,0.00022286,2]
[313606282,1707468646714,-1290.65162282,0.00022287,2]
[313606284,1707468646724,-2516.79403219,0.00022288,2]
[313606285,1707468646732,-168.77212557,0.00022288,2]
[313606286,1707468646741,-532.98185048,0.00022288,2]
[313606288,1707468646751,-1018.05941437,0.00022288,2]
[313606289,1707468646759,-155.97553284,0.00022288,2]
[313606290,1707468646768,-182.20296206,0.00022288,2]
[313606291,1707468646778,-565.07678163,0.00022288,2]
[313606292,1707468646787,-5294.78298054,0.00022288,2]
[313606293,1707468646796,-220.73064739,0.00022288,2]
[313606295,1707468646805,-155.66031924,0.00022288,2]
[313606297,1707468646813,-718.01783563,0.00022288,2]
[313606299,1707468646822,-3476.84082556,0.00022288,2]
[313606301,1707468646831,-4154.58919746,0.00022288,2]
[313606303,1707468646840,-1832.17488523,0.00022288,2]
[313606304,1707468646849,-893.51347031,0.00022289,2]
[313606305,1707468646858,-324.2736818,0.00022289,2]
[313606306,1707468646867,-1086.72458876,0.00022289,2]
[313606307,1707468646877,-2605.96968944,0.0002229,2]
[313606308,1707468646886,-906.16625216,0.0002229,2]
[313606309,1707468646899,-25628.22206749,0.0002229,2]
[313606310,1707468646908,-323.9970875,0.0002229,2]
[313606311,1707468646918,-151.0,0.0002229,2]
[313606312,1707468646928,-151.0,0.00022854,2]
[313606313,1707468646937,-5000.0,0.00023231,2]
[313606314,1707468646946,-1434.03782831,0.00023283,2]
[313606315,1707468646955,-556.74866856,0.0002338,2]
[313606316,1707468646965,-372.90024373,0.0002338,2]
[313606317,1707468646974,-500.0,0.0002338,2]
[313606318,1707468646983,-500.0,0.0002338,2]
[313606319,1707468646992,-500.0,0.0002338,2]
[313606320,1707468647001,-502.49704124,0.0002338,2]
[313606321,1707468647010,-500.0,0.0002338,2]
[313606322,1707468647019,-500.0,0.0002338,2]
[313606323,1707468647028,-500.0,0.0002338,2]
[313606324,1707468647037,-500.0,0.0002338,2]
[313606325,1707468647046,-500.0,0.0002338,2]
[313606326,1707468647055,-500.0,0.0002338,2]
[313606327,1707468647065,-500.0,0.0002338,2]
[313606328,1707468647074,-500.0,0.0002338,2]
[313606329,1707468647083,-500.0,0.0002338,2]
[313606330,1707468647092,-500.0,0.0002338,2]
[313606331,1707468647101,-500.0,0.0002338,2]
[313606332,1707468647110,-500.0,0.0002338,2]
[313606333,1707468647119,-415.57431259,0.0002338,2]
[313606334,1707468647128,-500.0,0.0002338,2]
[313606335,1707468647138,-500.0,0.0002338,2]
[313606336,1707468647147,-500.0,0.0002338,2]
[313606337,1707468647156,-500.0,0.0002338,2]
[313606338,1707468647165,-500.0,0.0002338,2]
[313606339,1707468647175,-500.0,0.0002338,2]
[313606340,1707468647184,-500.0,0.0002338,2]
[313606341,1707468647193,-500.0,0.0002338,2]
[313606342,1707468647202,-500.0,0.0002338,2]
[313606343,1707468647211,-500.0,0.0002338,2]
[313606344,1707468647220,-500.0,0.0002338,2]
[313606345,1707468647229,-500.0,0.0002338,2]
[313606346,1707468647238,-500.0,0.0002338,2]
[313606347,1707468647247,-500.0,0.0002338,2]
[313606348,1707468647256,-570.96940927,0.0002338,2]
[313606349,1707468647265,-500.0,0.0002338,2]
[313606350,1707468647275,-500.0,0.0002338,2]
[313606351,1707468647283,-500.0,0.0002338,2]
[313606352,1707468647292,-500.0,0.0002338,2]
[313606353,1707468647302,-500.0,0.0002338,2]
[313606354,1707468647310,-500.0,0.0002338,2]
[313606355,1707468647319,-500.0,0.0002338,2]
[313606356,1707468647328,-500.0,0.0002338,2]
[313606357,1707468647337,-500.0,0.0002338,2]
[313606358,1707468647346,-500.0,0.0002338,2]
[313606359,1707468647355,-500.0,0.0002338,2]
[313606360,1707468647364,-500.0,0.0002338,2]
[313606361,1707468647372,-500.0,0.0002338,2]
[313606362,1707468647381,-500.0,0.0002338,2]
[313606363,1707468647391,-500.0,0.0002338,2]
[313606364,1707468647400,-500.0,0.0002338,2]
[313606365,1707468647408,-500.0,0.0002338,2]
[313606366,1707468647417,-500.0,0.0002338,2]
[313606367,1707468647426,-500.0,0.0002338,2]
[313606368,1707468647435,-500.0,0.0002338,2]
[313606369,1707468647444,-500.0,0.0002338,2]
[313606370,1707468647453,-500.0,0.0002338,2]
[313606371,1707468647463,-500.0,0.0002338,2]
[313606372,1707468647472,-500.0,0.0002338,2]
[313606373,1707468647481,-500.0,0.0002338,2]
[313606374,1707468647490,-500.0,0.0002338,2]
[313606375,1707468647499,-500.0,0.0002338,2]
[313606376,1707468647508,-500.0,0.0002338,2]
[313606377,1707468647517,-500.0,0.0002338,2]
[313606378,1707468647527,-500.0,0.0002338,2]
[313606379,1707468647536,-500.0,0.0002338,2]
[313606380,1707468647545,-500.0,0.0002338,2]
[313606381,1707468647554,-387.38859219,0.0002338,2]
[313606382,1707468647563,-500.0,0.0002338,2]
[313606383,1707468647573,-500.0,0.0002338,2]
[313606384,1707468647582,-500.0,0.0002338,2]
[313606385,1707468647592,-500.0,0.0002338,2]
[313606386,1707468647601,-500.0,0.0002338,2]
[313606387,1707468647610,-500.0,0.0002338,2]
[313606388,1707468647727,-500.0,0.0002338,2]
[313606389,1707468647738,-500.0,0.0002338,2]
[313606390,1707468647749,-500.0,0.0002338,2]
[313606391,1707468647761,-500.0,0.0002338,2]
[313606392,1707468647773,-500.0,0.0002338,2]
[313606393,1707468647791,-500.0,0.0002338,2]
[313606394,1707468647803,-406.1505285,0.0002338,2]
[313606395,1707468647814,-5000.0,0.00023383,2]
[313606396,1707468647824,-5000.0,0.00023383,2]
[313606397,1707468647835,-5000.0,0.00023383,2]
[313606398,1707468647845,-18923.22439687,0.00023383,2]
[313606399,1707468647858,-5000.0,0.00023383,2]
[313606400,1707468647868,-5000.0,0.00023383,2]
[313606401,1707468647879,-5000.0,0.00023383,2]
[313606402,1707468647897,-5000.0,0.00023383,2]
[313606403,1707468647910,-5000.0,0.00023383,2]
[313606404,1707468647921,-5000.0,0.00023383,2]
[313606405,1707468647935,-5000.0,0.00023383,2]
[313606406,1707468647946,-5000.0,0.00023383,2]
[313606407,1707468647957,-3393.04624368,0.00023383,2]
[313606447,1707469831895,-267.9378859,0.00019366,2]
[313606448,1707469831905,-5282.62575812,0.00019436,2]
[313606449,1707469831914,-4496.73960399,0.00019437,2]
[313606450,1707469831923,-2169.2406468,0.00019442,2]
[313606452,1707469831932,-246.112991,0.00019818,2]
[313606454,1707469831940,-5787.3,0.0001999,3]
[313606456,1707469831949,-4822.75,0.0001999,3]
[313606458,1707469831958,-33913.26499705,0.0002,2]
[313606516,1707469838941,-2988.47765937,0.0002,2]
[313606519,1707469839001,-1686.61987331,0.0002,2]
[313606520,1707469839012,-16326.30225851,0.0002,2]
[313606587,1707469847819,-6421.91084176,0.0002,2]
[313606589,1707469847829,-1731.148393,0.00020077,2]
[313606590,1707469847838,-173.5098961,0.00020242,2]
[313606592,1707469847847,-151.0,0.0002065,2]
[313606594,1707469847857,-1747.38127927,0.00020725,2]
[313606596,1707469847866,-301.86796096,0.00020744,2]
[313606597,1707469847876,-457.29687472,0.00021205,2]
[313606599,1707469847885,-1228.93320051,0.00021283,2]
[313606600,1707469847894,-151.0,0.00021302,2]
[313606604,1707469847905,-200.0,0.00021383,7]
[313606607,1707469847914,-166.920569,0.00021918,2]
[313606609,1707469847923,-151.0,0.00021953,2]
[313606611,1707469847934,-295.1257161,0.00022,4]
[313606612,1707469847943,-466.17761758,0.00022177,2]
[313606613,1707469847952,-155.27136807,0.00022274,2]
[313606615,1707469847961,-310.10933089,0.00022274,2]
[313606617,1707469847971,-398.26172498,0.00022274,2]
[313606620,1707469847980,-591.70527972,0.00022274,2]
[313606624,1707469847989,-224.90793634,0.00022274,2]
[313606625,1707469847999,-217.5651034,0.00022274,2]
[313606627,1707469848008,-1439.11404638,0.00022274,2]
[313606629,1707469848017,-156.16180096,0.00022274,2]
[313606631,1707469848027,-915.59258083,0.00022275,2]
[313606632,1707469848037,-246.28684301,0.00022275,2]
[313606633,1707469848046,-222.79755356,0.00022275,2]
[313606732,1707470079863,-1185.04629617,0.000295,30]
[313606733,1707470079896,-1000.0,0.0003,30]
[313606734,1707470079921,-27153.08070994,0.0003,30]
[313606735,1707470079948,-150.5,0.00030659,30]
[313606736,1707470079972,-300.87,0.00030659,30]
[313606737,1707470079996,-546.0,0.00030659,30]
[313606738,1707470080020,-714.0,0.00030659,30]
[313606739,1707470080043,-150.5,0.00030669,30]
[313606740,1707470080066,-150.5,0.00030669,30]
[313606741,1707470080089,-546.0,0.00030669,30]
[313606742,1707470080115,-714.0,0.00030669,30]
[313606743,1707470080138,-150.5,0.00030679,30]
[313606744,1707470080159,-150.5,0.00030679,30]
[313606745,1707470080182,-546.0,0.00030679,30]
[313606746,1707470080204,-714.0,0.00030679,30]
[313606747,1707470080228,-241.56,0.00030689,30]
[313606748,1707470080253,-150.5,0.00030699,30]
[313606749,1707470080275,-155.73,0.00030699,30]
[313606750,1707470080298,-150.5,0.00030709,30]
[313606751,1707470080322,-188.0,0.00030709,30]
[313606752,1707470080346,-150.5,0.00030709,30]
[313606753,1707470080372,-1000.0,0.00031,31]
[313606754,1707470080397,-164.88,0.0003187,30]
[313606755,1707470080420,-150.5,0.0003188,30]
[313606756,1707470080442,-100976.01987775,0.00031888,30]
[313606757,1707470080465,-150.5,0.0003189,30]
[313606758,1707470080488,-1470.79004869,0.00031898,30]
[313606759,1707470080511,-714.0,0.0003196,30]
[313606760,1707470080534,-546.0,0.00031968,30]
[313606761,1707470080557,-714.0,0.0003197,30]
[313606762,1707470080580,-546.0,0.00031978,30]
[313606763,1707470080604,-714.0,0.0003198,30]
[313606764,1707470080627,-546.0,0.00031988,30]
[313606765,1707470080651,-1000.0,0.00032,32]
[313606766,1707470080676,-500.0,0.00032876,60]
[313606767,1707470080698,-500.0,0.00032876,60]
[313606768,1707470080723,-500.0,0.00032876,60]
[313606769,1707470080746,-500.0,0.00032876,60]
[313606770,1707470080769,-500.0,0.00032876,60]
[313606771,1707470080793,-500.0,0.00032876,60]
[313606772,1707470080815,-500.0,0.00032876,60]
[313606773,1707470080837,-500.0,0.00032876,60]
[313606774,1707470080860,-500.0,0.00032876,60]
[313606775,1707470080882,-500.0,0.00032876,60]
[313606776,1707470080904,-500.0,0.00032876,60]
[313606777,1707470080926,-500.0,0.00032876,60]
[313606778,1707470080948,-500.0,0.00032876,60]
[313606779,1707470080970,-500.0,0.00032876,60]
[313606780,1707470080992,-393.72132759,0.00032876,60]
[313606781,1707470081014,-178.419064,0.00032877,120]
[313606782,1707470081036,-1000.0,0.00033,33]
[313606783,1707470081059,-1000.0,0.00033,33]
[313606784,1707470081083,-546.0,0.0003358,30]
[313606785,1707470081105,-546.0,0.0003359,30]
[313606786,1707470081128,-1000.0,0.00034,34]
[313606787,1707470081150,-193.5191328,0.00034,120]
[313606788,1707470081175,-714.0,0.0003438,30]
[313606789,1707470081197,-714.0,0.0003439,30]
[313606790,1707470081221,-30670.71438294,0.00034898,120]
[313606791,1707470081246,-1000.0,0.00035,35]
[313606792,1707470081273,-1000.0,0.00035,35]
[313606793,1707470081296,-11337.21325347,0.00036,90]
[313606794,1707470081319,-356.87840516,0.00036,30]
[313606795,1707470081432,-1000.0,0.00036,36]
[313606796,1707470081459,-1000.0,0.00037,37]
[313606797,1707470081481,-1000.0,0.00037,37]
[313606798,1707470081506,-1209.07607771,0.00037163,30]
[313606799,1707470081530,-1495.10107529,0.00038,120]
[313606800,1707470081553,-1000.0,0.00038,38]
[313606801,1707470081576,-2014.0,0.000384,30]
[313606802,1707470081598,-152.1356522,0.000388,30]
[313606803,1707470081622,-554.93,0.0003898,30]
[313606804,1707470081647,-722.31,0.0003898,30]
[313606805,1707470081672,-546.0,0.0003899,30]
[313606806,1707470081698,-714.0,0.0003899,30]
[313606807,1707470081722,-1000.0,0.00039,39]
[313606808,1707470081745,-32000.0,0.00039,60]
[313606809,1707470081767,-1000.0,0.00039,39]
[313606810,1707470081790,-1256.16,0.000393,60]
[313606811,1707470081814,-10000.0,0.000393,60]
[313606812,1707470081837,-1866.24534985,0.00039726,30]
[313606813,1707470081864,-183469.03535282,0.00039768,120]
[313606814,1707470081890,-19634.66344458,0.00039919,30]
[313606815,1707470081915,-4262.40037726,0.0004,120]
[313606816,1707470081938,-261.71867258,0.0004,30]
[313606817,1707470081961,-572.91399626,0.0004,90]
[313606818,1707470081984,-1670.53211136,0.0004,120]
[313606819,1707470082009,-200.03463948,0.0004,30]
[313606820,1707470082033,-2500.0,0.0004,30]
[313606821,1707470082057,-1000.0,0.0004,40]
[313606822,1707470082081,-433.4476,0.0004,120]
[313606823,1707470082106,-20000.0,0.0004,30]
[313606824,1707470082131,-27134.35,0.0004,120]
[313606825,1707470082154,-5000.0,0.0004,30]
[313606826,1707470082177,-5000.0,0.0004,60]
[313606827,1707470082199,-16342.64072087,0.0004,60]
[313606828,1707470082221,-1000.0,0.0004,120]
[313606829,1707470082243,-1000.0,0.0004,120]
[313606830,1707470082272,-2000.0,0.0004,36]
[313606831,1707470082302,-5000.0,0.0004,30]
[313606832,1707470082338,-2000.0,0.0004001,36]
[313606833,1707470082369,-2000.0,0.0004002,36]
[313606834,1707470082402,-3567.35375,0.0004003,36]
[313606835,1707470082435,-153.58832336,0.00040378,30]
[313606836,1707470082465,-153.58832336,0.00040379,30]
[313606837,1707470082496,-153.58832336,0.00040416,30]
[313606838,1707470082526,-153.58832336,0.00040428,30]
[313606839,1707470082558,-151.80573949,0.0004055,30]
[313606840,1707470082586,-153.58832336,0.00040661,30]
[313606841,1707470082619,-152.28147539,0.00040683,30]
[313606842,1707470082651,-153.58832336,0.00040963,30]
[313606843,1707470082682,-1000.0,0.00041,41]
[313606844,1707470082714,-80100.0,0.00041,30]
[313606845,1707470082748,-53543.89152619,0.00041,60]
[313606847,1707470085911,-51033.25241958,0.00041,60]
[313606848,1707470085936,-22767.14345755,0.00041,60]
[313606849,1707470085959,-1000.0,0.00041,41]
[313606850,1707470085983,-23487.01215763,0.00041,30]
[313606851,1707470086009,-156.84359049,0.00041,120]
[313606852,1707470086034,-153.58832336,0.00041015,30]
[313606853,1707470086058,-500.0,0.00041095,30]
[313606854,1707470086081,-500.0,0.00041095,30]
[313606855,1707470086106,-500.0,0.00041095,30]
[313606856,1707470086130,-500.0,0.00041095,30]
[313606857,1707470086153,-500.0,0.00041095,30]
[313606858,1707470086177,-534.24205888,0.00041095,30]
[313606859,1707470091168,3527.24855724,0.000295,30]
[313606860,1707470132904,-5000000.0,0.00042372,60]
[313606862,1707470137536,-5000000.0,0.00042372,60]
[313606865,1707470233698,-5000000.0,0.00042372,60]
[313606866,1707470254799,-5000000.0,0.00042372,60]
[313606868,1707470326930,-5000000.0,0.00042372,60]
[313606903,1707470647916,834.384743,0.00027397,120]
[313606943,1707471032061,-261.76310895,0.00017888,7]
[313606944,1707471032071,-23.44348057,0.00017888,2]
[313606978,1707471038882,-155.81259592,0.00017888,2]
[313606979,1707471038892,-181.58448589,0.00017889,2]
[313606980,1707471038901,-158.95416115,0.00017894,2]
[313606981,1707471038910,-5282.62575812,0.00017997,2]
[313606983,1707471038919,-254.87989275,0.00017998,2]
[313607108,1707471041341,-261.26667266,0.00017998,2]
[313607111,1707471041601,-252.30064042,0.00017998,2]
[313607132,1707471043078,-293.26520376,0.00017998,2]
[313607133,1707471043251,-391.68543637,0.00017998,2]
[313607135,1707471043262,-3530.0,0.00017998,2]
[313607138,1707471043273,-4389.04377579,0.00017998,2]
[313607140,1707471043285,-967.83731335,0.00017998,2]
[313607142,1707471043294,-155.13341474,0.00017998,3]
[313607144,1707471043303,-200.1754723,0.00018208,2]
[313607146,1707471043313,-10656.65107673,0.00018403,2]
[313607273,1707471046099,-94.38945847,0.00018403,2]
[313607274,1707471046108,-1620.0012317,0.00018797,2]
[313607275,1707471046118,-200.0,0.00018897,2]
[313607276,1707471046127,-2056.672957,0.00019339,2]
[313607277,1707471046137,-171.41118085,0.000199,2]
[313607278,1707471046146,-5365.55,0.0001999,3]
[313607279,1707471046155,-1400.49517198,0.0001999,3]
[313607282,1707471165932,625.788557,0.00027397,120]
[313607284,1707471622384,469.341417,0.00027397,120]
[313607295,1707472159173,352.006062,0.00027397,120]
[313607353,1707472232217,-243.89592339,0.00017735,2]
[313607354,1707472232226,-155.108576,0.00017736,2]
[313607356,1707472232236,-462.94085565,0.00017736,2]
[313607357,1707472232248,-4033.79874834,0.00017736,2]
[313607358,1707472232257,-1032.36645246,0.00017737,3]
[313607359,1707472232266,-5282.62575812,0.00017737,2]
[313607360,1707472232276,-3757.13220272,0.00017738,2]
[313607361,1707472232285,-16878.23028944,0.00017757,2]
[313607363,1707472232294,-29001.25032197,0.00017888,2]
[313607364,1707472232303,-153.81405203,0.000179,2]
[313607366,1707472232312,-200.0,0.00018628,2]
[313607367,1707472232321,-5855.36083987,0.00018899,2]
[313607369,1707472232330,-1833.14227763,0.000189,2]
[313607370,1707472232339,-153.81405201,0.0001922,2]
[313607371,1707472232348,-5495.54,0.00019978,3]
[313607372,1707472232357,-2881.87,0.00019988,3]
[313607373,1707472232367,-676.06156525,0.00019989,2]
[313607374,1707472232376,-240.96840215,0.00019998,2]
[313607375,1707472232385,-573.28461195,0.00019998,2]
[313607376,1707472232394,-277.17265983,0.00019998,2]
[313607377,1707472232403,-183.30277748,0.00019998,2]
[313607378,1707472232413,-179.71475769,0.00019998,2]
[313607379,1707472232422,-155.45528674,0.00019998,2]
[313607380,1707472232431,-310.05270899,0.00019998,2]
[313607381,1707472232440,-481.47211308,0.00019998,2]
[313607382,1707472232449,-659.13701845,0.00019998,2]
[313607383,1707472232458,-1367.19633154,0.00019998,2]
[313607384,1707472232467,-5671.82292722,0.00019998,2]
[313607385,1707472232479,-2646.56482763,0.00019998,2]
[313607468,1707472240994,-1364.18230294,0.00019998,2]
[313607470,1707472241003,-2836.2762381,0.00019998,2]
[313607472,1707472241012,-516.97983621,0.00019998,2]
[313607474,1707472241021,-271.89132687,0.00019999,7]
[313607476,1707472241030,-718.01783563,0.00019999,2]
[313607478,1707472241039,-919.15472735,0.0002,2]
[313607480,1707472241051,-9515.2375002,0.0002,2]
[313607537,1707472241572,-2233.19520535,0.0002,2]
[313607654,1707472243292,-9349.96460064,0.0002,2]
[313607679,1707472246263,-156.10250257,0.00019998,2]
[313607681,1707472246273,-206.88391794,0.00019999,2]
[313607682,1707472246282,-5781.01357949,0.0002,2]
[313607695,1707472626896,264.004546,0.00027397,120]
[313607696,1707472869746,422.26659714,0.00016525,30]
[313607697,1707472926199,155.09305583,0.00016525,2]
[313607698,1707472931457,155.09305583,0.00016525,2]
[313607699,1707472931523,10324.50896271,0.00016525,2]
[313607700,1707472932638,684.32766003,0.00016525,2]
[313607701,1707472938295,155.09305583,0.00016525,2]
[313607702,1707472948661,628.78602669,0.00016525,2]
[313607703,1707472951468,155.09305583,0.00016525,2]
[313607704,1707472951528,7289.60138441,0.00016525,2]
[313607705,1707472960199,226.50988422,0.00016525,2]
[313607706,1707472965463,307.1537154,0.00016525,2]
[313607707,1707473052979,17685.66814973,0.00016525,2]
[313607708,1707473108328,198.003409,0.00027397,120]
[313607744,1707473432319,-192.830686,0.00018123,2]
[313607746,1707473432328,-155.09305583,0.00018141,2]
[313607748,1707473432338,-155.09305583,0.00018142,2]
[313607749,1707473432347,-35.50063879,0.00018142,2]